bitfinex-derivatives/quotes_SOLF0:USTF0_20240925
["timestamp","ask_amount","ask_price","bid_price","bid_amount"]
[1727283740450,3.31275282,151.57,151.48,3.3009]
[1727283740649,22.84,151.59,151.48,3.3009]
[1727283741246,26.15110173,151.59,151.48,3.3009]
[1727283744862,26.15110173,151.59,151.45,22.84]
[1727283745056,22.84,151.56,151.45,22.84]
[1727283745252,22.84,151.59,151.45,22.84]
[1727283745456,26.14317638,151.59,151.45,102.04]
[1727283745961,26.14317638,151.59,151.5,3.3004]
[1727283746157,26.14317638,151.59,151.45,102.04]
[1727283746964,26.14317638,151.59,151.49,3.3005]
[1727283747358,26.14317638,151.59,151.45,102.04]
[1727283747560,26.14317638,151.59,151.51,3.3002]
[1727283747755,26.14317638,151.59,151.45,102.04]
[1727283749558,26.14317638,151.59,151.51,3.3002]
[1727283749760,26.14317638,151.59,151.52,1.3934]
[1727283751064,26.14317638,151.59,151.46,1.3934]
[1727283751770,22.84,151.53,151.46,1.3934]
[1727283752164,22.84,151.53,151.47,3.3011]
[1727283752769,26.2073402,151.53,151.47,3.3011]
[1727283753868,26.2073402,151.53,151.46,1.3934]
[1727283754268,22.84,151.51,151.43,2.6803]
[1727283754461,22.84,151.51,151.44,3.3016]
[1727283755564,22.84,151.51,151.43,2.6803]
[1727283755565,22.84,151.51,151.43,5.9822]
[1727283755771,22.84,151.48,151.41,80.536]
[1727283756068,22.84,151.48,151.41,83.8383]
[1727283756265,22.84,151.46,151.41,80.536]
[1727283756966,22.84,151.46,151.41,79.22]
[1727283757562,22.84,151.49,151.41,79.22]
[1727283757767,22.84,151.51,151.41,79.22]
[1727283758476,22.84,151.51,151.42,3.302]
[1727283760470,22.84,151.48,151.42,3.302]
[1727283760776,22.84,151.52,151.41,79.22]
[1727283761076,22.84,151.49,151.43,3.3019]
[1727283761777,26.2033961,151.49,151.43,3.3019]
[1727283763284,26.2033961,151.49,151.42,3.3021]
[1727283763576,26.2033961,151.49,151.41,79.22]
[1727283763880,22.84,151.47,151.41,79.22]
[1727283764374,22.84,151.47,151.41,82.5224]
[1727283764579,14.27,151.45,151.41,82.5224]
[1727283764972,3.36933544,151.44,151.41,82.5224]
[1727283765170,14.27,151.47,151.42,3.3022]
[1727283765374,17.6112604,151.47,151.42,3.3022]
[1727283766582,17.6112604,151.47,151.39,3.9724]
[1727283767680,17.6112604,151.47,151.43,3.3018]
[1727283767984,17.6112604,151.47,151.39,3.9724]
[1727283768179,17.6112604,151.47,151.43,3.3018]
[1727283769081,17.6112604,151.47,151.44,3.3017]
[1727283769282,3.3412604,151.47,151.39,18.2424]
[1727283769480,14.27,151.49,151.39,18.2424]
[1727283769783,14.27,151.49,151.45,3.3014]
[1727283769983,17.53317814,151.49,151.45,3.3014]
[1727283770575,17.53317814,151.49,151.44,3.3017]
[1727283770781,17.53317814,151.49,151.39,112.5024]
[1727283771175,17.53317814,151.49,151.44,3.3016]
[1727283774378,14.27,151.47,151.39,98.2324]
[1727283774583,14.27,151.45,151.39,98.2324]
[1727283775385,17.64110874,151.45,151.39,98.2324]
[1727283775586,17.64110874,151.45,151.39,18.9724]
[1727283776289,17.64110874,151.45,151.41,3.3023]
[1727283777282,17.64110874,151.45,151.42,3.3021]
[1727283777483,3.37110874,151.45,151.39,18.9724]
[1727283777679,14.27,151.47,151.39,18.9724]
[1727283777878,14.27,151.47,151.43,3.3018]
[1727283778088,14.27,151.47,151.39,18.9724]
[1727283778292,3.23620069,151.47,151.4,14.27]
[1727283778589,14.27,151.49,151.4,14.27]
[1727283778787,14.27,151.49,151.45,3.3014]
[1727283778988,17.53968816,151.49,151.4,14.27]
[1727283779688,3.26968816,151.49,151.42,14.27]
[1727283779879,14.27,151.5,151.47,3.3011]
[1727283780390,3.24986786,151.49,151.47,3.3011]
[1727283780589,3.24986786,151.49,151.42,14.27]
[1727283780891,14.27,151.5,151.41,79.28]
[1727283781290,14.27,151.48,151.41,79.28]
[1727283781585,14.27,151.46,151.41,79.28]
[1727283781791,14.27,151.46,151.43,3.3018]
[1727283782091,14.27,151.46,151.41,79.28]
[1727283782590,14.27,151.46,151.43,3.3018]
[1727283783692,14.27,151.46,151.44,3.3016]
[1727283783893,14.27,151.48,151.41,79.28]
[1727283784794,14.27,151.48,151.45,3.3014]
[1727283786994,3.22707452,151.5,151.42,14.27]
[1727283787196,14.27,151.54,151.44,14.27]
[1727283787391,14.27,151.54,151.48,3.3008]
[1727283788486,14.27,151.54,151.49,3.3007]
[1727283788885,14.27,151.54,151.48,3.3008]
[1727283789089,14.27,151.52,151.45,3.9282]
[1727283789289,14.27,151.48,151.39,94.28]
[1727283789491,14.27,151.46,151.4,2.5705]
[1727283790189,3.30966444,151.45,151.44,3.3016]
[1727283790693,14.27,151.46,151.42,3.3021]
[1727283791288,17.61963144,151.46,151.42,3.3021]
[1727283791798,14.27,151.44,151.4,2.5705]
[1727283791987,14.27,151.48,151.39,15.0]
[1727283791988,14.27,151.42,151.39,15.0]
[1727283792499,14.27,151.4,151.39,15.0]
[1727283793497,17.55917811,151.4,151.39,15.0]
[1727283794292,3.28917811,151.4,151.39,15.0]
[1727283794493,22.85,151.42,151.39,15.0]
[1727283797698,22.85,151.42,151.35,79.26]
[1727283797891,22.85,151.38,151.35,82.5637]
[1727283798096,26.1919261,151.38,151.35,79.26]
[1727283798390,26.1919261,151.38,151.29,2.6844]
[1727283798391,22.85,151.36,151.29,2.6844]
[1727283798790,26.07526274,151.36,151.29,5.9894]
[1727283798993,22.85,151.34,151.29,5.9894]
[1727283799397,22.85,151.34,151.3,3.3048]
[1727283799798,26.16713926,151.34,151.3,3.3048]
[1727283800000,3.31713926,151.34,151.31,3.3046]
[1727283800195,22.85,151.36,151.29,2.6844]
[1727283800600,22.85,151.36,151.31,3.3045]
[1727283800808,26.23224601,151.36,151.31,3.3045]
[1727283801200,26.23224601,151.36,151.32,3.3043]
[1727283802604,3.38224601,151.36,151.29,2.6844]
[1727283802910,10.14765455,151.48,151.29,2.6844]
[1727283802911,22.85,151.41,151.29,25.5344]
[1727283806712,22.85,151.41,151.36,3.3034]
[1727283807406,3.24010977,151.4,151.31,22.85]
[1727283807610,22.85,151.44,151.32,1.2721]
[1727283808516,22.85,151.44,151.37,3.3033]
[1727283808808,22.85,151.44,151.32,1.2721]
[1727283809009,22.85,151.44,151.38,3.303]
[1727283809214,22.85,151.44,151.32,1.2721]
[1727283809908,22.85,151.44,151.36,3.3034]
[1727283810711,22.85,151.44,151.32,1.2721]
[1727283811109,3.24491279,151.48,151.38,3.3029]
[1727283811310,22.85,151.45,151.34,22.85]
[1727283811512,26.08550796,151.45,151.35,2.5563]
[1727283811816,26.08550796,151.45,151.38,3.303]
[1727283812210,26.08550796,151.45,151.4,3.3026]
[1727283812411,3.23550796,151.45,151.4,3.3026]
[1727283812610,22.85,151.48,151.4,3.3026]
[1727283812910,0.98871615,151.47,151.4,3.3026]
[1727283813107,26.0990581,151.48,151.39,3.3027]
[1727283814420,14.28,151.44,151.39,3.3027]
[1727283815312,17.64616606,151.44,151.39,3.3027]
[1727283816506,17.64616606,151.44,151.35,16.8363]
[1727283817117,17.64616606,151.44,151.4,3.3025]
[1727283820821,17.64616606,151.44,151.38,3.3029]
[1727283821115,14.28,151.42,151.35,2.5563]
[1727283821418,14.28,151.4,151.35,2.5563]
[1727283821718,17.55242085,151.4,151.35,2.5563]
[1727283822516,17.55242085,151.4,151.36,3.3034]
[1727283823019,17.55242085,151.4,151.35,5.8599]
[1727283824317,17.55242085,151.4,151.35,3.3036]
[1727283825020,17.55242085,151.4,151.36,3.3035]
[1727283825833,39.65,151.36,151.0,19.81]
[1727283826037,28.56,151.37,151.14,2.6489]
[1727283826038,14.28,151.33,151.14,2.6489]
[1727283826218,14.28,151.26,151.16,14.28]
[1727283826521,3.35118444,151.25,151.16,14.28]
[1727283826923,3.35118444,151.25,151.2,3.3068]
[1727283827223,17.53185234,151.26,151.16,14.28]
[1727283827426,14.28,151.28,151.22,3.3064]
[1727283827627,17.5457449,151.28,151.22,3.3064]
[1727283827921,17.5457449,151.28,151.2,3.3068]
[1727283828123,17.5457449,151.28,151.16,14.28]
[1727283828525,17.5457449,151.28,151.21,3.3066]
[1727283828720,17.5457449,151.28,151.16,14.28]
[1727283830417,14.28,151.26,151.16,14.28]
[1727283830619,14.28,151.23,151.15,1.2681]
[1727283830925,14.28,151.23,151.18,3.3073]
[1727283835724,14.28,151.23,151.19,3.3072]
[1727283837523,14.28,151.28,151.17,14.28]
[1727283837918,17.61024548,151.28,151.17,14.28]
[1727283838316,17.61024548,151.28,151.19,14.28]
[1727283838521,17.61024548,151.28,151.2,2.653]
[1727283839024,17.61024548,151.28,151.21,1.338]
[1727283839815,3.28012175,151.37,151.21,1.338]
[1727283840129,14.28,151.29,151.21,1.338]
[1727283840424,17.56680834,151.29,151.21,1.338]
[1727283840826,14.28,151.29,151.21,1.338]
[1727283841027,14.28,151.29,151.24,3.306]
[1727283841226,14.28,151.29,151.21,1.338]
[1727283841424,17.56978522,151.29,151.21,1.338]
[1727283842622,17.56978522,151.29,151.25,3.3059]
[1727283842823,14.28,151.29,151.21,1.338]
[1727283843227,14.28,151.29,151.26,3.3056]
[1727283843424,14.28,151.29,151.21,15.618]
[1727283843624,14.28,151.31,151.21,15.618]
[1727283843821,17.53637799,151.31,151.27,3.3053]
[1727283846622,17.53637799,151.31,151.26,3.3056]
[1727283847225,14.28,151.29,151.25,3.3058]
[1727283847629,14.28,151.27,151.21,80.698]
[1727283847829,14.28,151.27,151.24,3.3061]
[1727283849831,14.28,151.29,151.21,80.698]
[1727283850224,14.28,151.29,151.25,3.3058]
[1727283850428,17.54608489,151.29,151.25,3.3058]
[1727283850632,14.28,151.29,151.25,3.3058]
[1727283851536,14.28,151.29,151.26,3.3056]
[1727283851729,14.28,151.29,151.21,80.698]
[1727283852128,14.28,151.29,151.25,3.3058]
[1727283853425,14.28,151.27,151.24,3.306]
[1727283853729,14.28,151.27,151.21,1.338]
[1727283853931,14.28,151.27,151.23,3.3062]
[1727283854325,14.28,151.27,151.21,1.338]
[1727283855834,14.28,151.27,151.23,3.3062]
[1727283857934,14.28,151.27,151.22,3.3065]
[1727283858243,14.28,151.27,151.2,82.013]
[1727283858738,14.28,151.29,151.21,14.28]
[1727283858938,3.3821756,151.3,151.21,15.6537]
[1727283859130,14.28,151.31,151.21,15.6537]
[1727283859536,17.66339161,151.31,151.21,15.6537]
[1727283860635,17.66339161,151.31,151.26,3.3056]
[1727283860835,17.66339161,151.31,151.21,15.6537]
[1727283862236,17.66339161,151.31,151.27,3.3054]
[1727283862538,9.14,151.28,151.21,1.3737]
[1727283862836,9.14,151.26,151.21,10.5137]
[1727283863041,9.14,151.23,151.2,82.013]
[1727283863541,9.14,151.23,151.22,3.3066]
[1727283864443,3.33223344,151.25,151.23,3.3063]
[1727283864741,3.33223344,151.25,151.2,82.013]
[1727283864742,14.29,151.26,151.2,82.013]
[1727283865138,3.27170752,151.25,151.2,82.013]
[1727283865441,3.27170752,151.25,151.22,3.3064]
[1727283866131,14.29,151.23,151.17,1.3457]
[1727283866736,14.29,151.23,151.21,3.3068]
[1727283866936,17.54747046,151.23,151.17,1.3457]
[1727283867936,17.54747046,151.23,151.19,3.3071]
[1727283868134,14.29,151.21,151.16,79.36]
[1727283868441,14.29,151.21,151.16,82.6678]
[1727283868642,14.29,151.21,151.16,79.36]
[1727283869141,14.29,151.21,151.17,3.3075]
[1727283869533,17.54159903,151.21,151.17,3.3075]
[1727283869941,17.54159903,151.21,151.18,3.3074]
[1727283871135,17.54159903,151.21,151.19,3.3072]
[1727283872846,3.25159903,151.21,151.2,3.307]
[1727283873045,14.29,151.23,151.2,3.307]
[1727283873442,2.6643,151.27,151.16,79.36]
[1727283873742,14.29,151.25,151.16,93.65]
[1727283873949,3.27310869,151.24,151.16,93.65]
[1727283874341,14.29,151.25,151.16,93.65]
[1727283874952,14.29,151.23,151.16,79.36]
[1727283875449,14.29,151.23,151.2,3.3068]
[1727283875950,14.29,151.23,151.19,3.3071]
[1727283876349,14.29,151.23,151.14,20.9064]
[1727283876651,14.29,151.23,151.2,3.3069]
[1727283877149,14.29,151.23,151.21,3.3068]
[1727283878447,14.29,151.23,151.2,3.307]
[1727283882455,14.29,151.23,151.14,20.9064]
[1727283883355,14.29,151.23,151.21,3.3068]
[1727283884548,9.15,151.22,151.2,3.3069]
[1727283884749,9.15,151.2,151.14,6.6164]
[1727283884947,6.02013816,151.27,151.13,91.2546]
[1727283884948,9.15,151.18,151.13,11.8746]
[1727283885556,9.15,151.18,151.13,2.7246]
[1727283885755,9.15,151.18,151.13,11.8746]
[1727283885952,9.15,151.18,151.17,3.3077]
[1727283886361,9.15,151.2,151.19,3.3071]
[1727283886760,9.15,151.2,151.13,11.8746]
[1727283886955,9.15,151.18,151.13,11.8746]
[1727283887660,9.15,151.18,151.13,2.7246]
[1727283887863,9.15,151.18,151.13,11.8746]
[1727283888159,3.38164975,151.19,151.0,570.25863768]
[1727283888160,9.15,151.14,151.0,570.25863768]
[1727283888359,14.3,151.12,151.02,1.3014]
[1727283888564,14.3,151.12,151.02,15.6014]
[1727283888765,14.3,151.11,151.07,3.3098]
[1727283888962,14.3,151.09,151.02,1.3014]
[1727283889158,3.39325917,151.08,151.02,1.3014]
[1727283889561,14.3,151.09,151.02,1.3014]
[1727283890167,14.3,151.09,151.06,3.3099]
[1727283890566,14.3,151.09,151.05,3.3102]
[1727283890762,14.3,151.09,151.02,1.3014]
[1727283892158,14.3,151.09,151.08,3.3096]
[1727283892871,14.3,151.12,151.08,3.3096]
[1727283895874,14.3,151.12,151.09,3.3093]
[1727283896570,14.3,151.23,151.02,15.6014]
[1727283896571,6.91339221,151.25,151.02,341.3014]
[1727283896773,230.0,151.52,151.02,357.3014]
[1727283896774,14.3,151.22,151.02,357.3014]
[1727283896969,14.3,151.2,151.11,14.3]
[1727283897177,14.3,151.18,151.09,14.3]
[1727283897366,14.3,151.18,151.1,5.2042]
[1727283897675,14.3,151.18,151.1,7.9822]
[1727283899377,14.3,151.16,151.13,3.3085]
[1727283899579,14.3,151.16,151.1,7.9822]
[1727283900783,3.26527235,151.15,151.1,7.9822]
[1727283900984,14.3,151.14,151.12,3.3087]
[1727283901178,3.37646435,151.13,151.12,3.3087]
[1727283901781,14.3,151.14,151.05,14.3]
[1727283902095,3.25642213,151.14,151.05,14.3]
[1727283902281,14.3,151.16,151.05,14.3]
[1727283902582,14.3,151.16,151.07,14.3]
[1727283902882,3.25311175,151.15,151.09,14.3]
[1727283903086,14.3,151.2,151.11,14.3]
[1727283904287,14.3,151.17,151.08,14.3]
[1727283904483,14.3,151.15,151.13,3.3083]
[1727283904688,17.66765095,151.15,151.07,14.3]
[1727283905485,14.3,151.13,151.1,3.309]
[1727283905686,14.3,151.13,151.04,101.9725]
[1727283906082,14.3,151.13,151.11,3.3089]
[1727283906684,3.36765095,151.15,151.12,3.3087]
[1727283906890,14.3,151.14,151.04,87.6725]
[1727283907083,17.65308527,151.14,151.04,87.6725]
[1727283907283,14.3,151.12,151.04,87.6725]
[1727283908086,17.60960245,151.12,151.04,84.9363]
[1727283908292,14.3,151.1,151.04,84.9363]
[1727283908597,14.3,151.1,151.06,3.3099]
[1727283909083,17.60165463,151.1,151.05,3.3102]
[1727283909277,17.60165463,151.1,151.04,79.44]
[1727283910484,17.60165463,151.1,151.06,3.31]
[1727283910887,17.60165463,151.1,151.04,79.44]
[1727283911284,3.30165463,151.1,151.04,79.44]
[1727283911488,14.3,151.12,151.04,79.44]
[1727283911681,17.55163939,151.12,151.04,79.44]
[1727283912191,17.55163939,151.12,151.04,93.74]
[1727283912381,17.55163939,151.12,151.04,79.44]
[1727283912587,17.55163939,151.12,151.02,14.3]
[1727283913686,17.55163939,151.12,151.05,3.3103]
[1727283913891,17.55163939,151.12,151.02,14.3]
[1727283914394,17.55163939,151.12,151.07,3.3097]
[1727283914587,17.55163939,151.12,151.02,14.3]
[1727283914991,17.55163939,151.12,151.06,3.3099]
[1727283915191,14.3,151.1,151.0,14.3]
[1727283915891,17.64878791,151.1,151.0,14.3]
[1727283916801,3.34878791,151.1,151.02,14.3]
[1727283917092,14.3,151.12,151.02,14.3]
[1727283917493,17.61898264,151.12,151.06,3.3099]
[1727283917693,14.3,151.1,151.01,14.3]
[1727283918096,14.3,151.1,151.05,3.3102]
[1727283918699,14.3,151.1,151.06,3.31]
[1727283918892,14.3,151.1,151.01,14.3]
[1727283919294,14.3,151.1,151.06,3.3099]
[1727283919694,14.3,151.1,151.01,14.3]
[1727283919894,14.3,151.1,151.06,3.3099]
[1727283920092,3.31898264,151.12,151.01,14.3]
[1727283920293,14.3,151.13,151.03,14.3]
[1727283920599,17.59414313,151.13,151.03,14.3]
[1727283921397,17.59414313,151.13,151.08,3.3096]
[1727283921593,17.59414313,151.13,151.03,14.3]
[1727283921798,14.3,151.11,151.01,14.3]
[1727283922101,14.3,151.11,151.06,3.31]
[1727283922294,17.60463005,151.11,151.01,14.3]
[1727283923800,14.3,151.09,150.99,19.5285]
[1727283924100,14.3,151.07,150.99,5.2285]
[1727283924398,14.3,151.07,151.03,3.3105]
[1727283924599,14.3,151.07,150.99,5.2285]
[1727283924800,3.28740561,151.06,150.99,5.2285]
[1727283925402,14.3,151.07,150.99,5.2285]
[1727283925904,17.54931476,151.07,151.02,3.3108]
[1727283926398,17.54931476,151.07,150.99,5.2285]
[1727283927289,17.54931476,151.07,151.02,3.3108]
[1727283928098,17.54931476,151.07,151.03,3.3107]
[1727283929999,17.54931476,151.07,150.99,5.2285]
[1727283930206,14.3,151.05,150.99,5.2285]
[1727283930501,14.3,151.05,151.02,3.3109]
[1727283931001,17.68556541,151.05,151.02,3.3109]
[1727283932298,3.38556541,151.05,150.99,5.2285]
[1727283932504,14.3,151.07,150.99,5.2285]
[1727283932903,14.3,151.07,151.03,3.3106]
[1727283933099,17.54046975,151.07,151.03,3.3106]
[1727283933702,17.54046975,151.07,151.02,3.3108]
[1727283934302,14.3,151.05,151.02,3.3108]
[1727283935003,3.35972646,151.04,151.02,3.3108]
[1727283935304,3.35972646,151.04,151.03,3.3107]
[1727283937107,14.3,151.07,151.03,3.3107]
[1727283937701,17.67463355,151.07,151.03,3.3107]
[1727283938404,17.67463355,151.07,151.02,3.3108]
[1727283939701,14.3,151.05,151.01,3.311]
[1727283940505,17.67286338,151.05,151.01,3.311]
[1727283941404,14.3,151.03,150.95,2.5396]
[1727283942104,14.3,151.03,151.0,3.3113]
[1727283942304,17.55791705,151.03,151.0,3.3113]
[1727283942798,17.55791705,151.03,150.99,3.3116]
[1727283943003,14.3,151.01,150.95,2.5396]
[1727283944012,14.3,151.01,150.96,3.3122]
[1727283944212,14.3,151.01,150.95,2.5396]
[1727283945307,3.25791705,151.03,150.95,16.8396]
[1727283945512,14.3,151.05,150.95,16.8396]
[1727283945702,14.3,151.03,150.95,16.8396]
[1727283946212,14.3,151.03,150.99,3.3115]
[1727283946608,14.3,151.03,150.95,16.8396]
[1727283946806,14.3,151.03,150.98,3.3116]
[1727283947703,14.3,151.03,150.95,16.8396]
[1727283948305,14.3,151.05,151.01,3.3112]
[1727283949812,14.3,151.05,150.95,16.8396]
[1727283950212,14.3,151.05,150.99,3.3114]
[1727283951316,14.3,151.03,150.99,3.3114]
[1727283951520,14.3,151.03,151.0,3.3113]
[1727283952323,14.3,151.05,151.01,3.3111]
[1727283952621,14.3,151.05,150.95,16.8396]
[1727283953120,11.47043951,151.07,150.97,14.3]
[1727283953121,17.57423951,151.07,150.97,14.3]
[1727283953418,17.57423951,151.07,150.99,14.3]
[1727283954119,17.57423951,151.07,151.03,3.3106]
[1727283955016,17.57423951,151.07,151.04,3.3105]
[1727283956523,17.57423951,151.07,151.05,3.3103]
[1727283956724,3.27423951,151.07,151.01,2.6374]
[1727283957022,14.3,151.09,151.01,2.6374]
[1727283957422,14.3,151.09,151.04,3.3104]
[1727283957920,14.3,151.09,151.03,3.3106]
[1727283959016,14.3,151.09,151.04,3.3104]
[1727283960323,9.16,151.06,151.04,3.3104]
[1727283960519,3.37297721,151.05,151.04,3.3104]
[1727283960715,12.53297721,151.05,151.04,3.3104]
[1727283960920,9.16,151.05,151.03,3.3106]
[1727283961428,12.41305796,151.05,151.03,3.3106]
[1727283961623,9.16,151.04,151.02,3.3108]
[1727283961925,9.16,151.03,151.02,3.3108]
[1727283962319,3.39252206,151.03,151.02,3.3108]
[1727283962520,14.31,151.03,150.97,2.6354]
[1727283962727,17.60622835,151.03,150.97,2.6354]
[1727283963027,14.31,151.01,150.98,3.3118]
[1727283963227,14.31,151.01,150.96,2.7686]
[1727283963627,17.62213135,151.01,150.97,3.3119]
[1727283964021,17.62213135,151.01,150.94,79.5]
[1727283964333,14.31,150.99,150.94,79.5]
[1727283964526,14.31,150.99,150.95,3.3123]
[1727283965028,14.31,150.99,150.94,79.5]
[1727283965525,3.33863635,150.98,150.95,3.3123]
[1727283968731,14.31,150.99,150.95,3.3123]
[1727283969722,17.68663198,150.99,150.96,3.3122]
[1727283971934,17.68663198,150.99,150.95,3.3124]
[1727283972128,14.31,150.97,150.91,5.3865]
[1727283972633,14.31,150.95,150.92,3.313]
[1727283972930,14.31,150.95,150.89,2.6761]
[1727283973229,14.31,150.95,150.87,79.5]
[1727283973428,14.31,150.93,150.87,79.5]
[1727283973624,14.31,150.93,150.9,3.3135]
[1727283973827,14.31,150.93,150.87,79.5]
[1727283974034,14.31,150.97,150.87,14.31]
[1727283974229,14.31,150.98,150.89,14.31]
[1727283974433,3.37663198,150.99,150.91,14.31]
[1727283974635,14.31,151.0,150.91,14.31]
[1727283974832,14.31,151.0,150.92,5.5133]
[1727283975135,17.67713727,151.0,150.92,5.5133]
[1727283975337,3.36713727,151.0,150.93,14.31]
[1727283975539,14.31,151.02,150.93,14.31]
[1727283975733,14.31,151.02,150.97,3.3119]
[1727283976039,17.66631385,151.02,150.97,3.3119]
[1727283976334,14.31,151.0,150.92,5.5133]
[1727283976837,14.31,151.0,150.95,3.3123]
[1727283977137,17.5764984,151.0,150.95,3.3123]
[1727283979237,17.5764984,151.0,150.92,5.5133]
[1727283979438,3.2664984,151.0,150.93,14.31]
[1727283979639,14.31,151.03,150.93,14.31]
[1727283979941,14.31,151.03,150.97,3.3119]
[1727283980141,17.58345827,151.03,150.97,3.3119]
[1727283982150,17.58345827,151.03,150.98,3.3118]
[1727283982647,17.58345827,151.03,150.96,3.3121]
[1727283982648,9.16,151.0,150.96,3.3121]
[1727283982846,9.16,151.0,150.95,9.16]
[1727283983844,9.16,151.0,150.97,3.3119]
[1727283985148,9.16,151.0,150.98,3.3118]
[1727283985448,9.16,151.0,150.93,9.16]
[1727283986139,9.16,151.0,150.92,5.5133]
[1727283986448,9.16,150.97,150.92,14.6733]
[1727283986643,5.2429,151.05,150.93,9.16]
[1727283986947,9.16,150.98,150.94,9.16]
[1727283987448,9.16,150.98,150.97,3.3119]
[1727283988644,9.16,150.98,150.92,5.5133]
[1727283988850,9.16,150.97,150.92,14.6733]
[1727283989247,9.16,150.97,150.95,3.3123]
[1727283989853,9.16,150.97,150.96,3.3123]
[1727283990048,8.63202466,151.05,150.93,9.16]
[1727283990250,9.16,150.98,150.96,3.3121]
[1727283990444,9.16,150.98,150.92,14.6733]
[1727283990653,9.16,150.96,150.92,14.6733]
[1727283991157,9.16,150.95,150.92,5.5133]
[1727283991348,9.16,150.93,150.91,3.3133]
[1727283991549,9.16,150.92,150.91,3.3133]
[1727283992050,3.35432943,150.94,150.89,167.90460917]
[1727283992051,9.16,150.93,150.89,167.90460917]
[1727283992248,9.16,150.93,150.89,177.06460917]
[1727283992554,9.16,150.94,150.9,9.16]
[1727283993150,9.16,150.97,150.91,9.16]
[1727283993356,3.3718983,150.96,150.91,9.16]
[1727283993655,9.16,150.96,150.93,3.3128]
[1727283993851,3.3636111,150.95,150.93,3.3128]
[1727283994555,3.3636111,150.95,150.94,3.3127]
[1727283994748,8.63202466,151.05,150.91,9.16]
[1727283994953,0.99216052,151.04,150.91,9.16]
[1727283995150,9.16,150.96,150.91,9.16]
[1727283995458,9.16,150.95,150.9,2.6313]
[1727283995655,9.16,150.95,150.93,3.3128]
[1727283996161,9.16,150.95,150.9,2.6313]
[1727283996654,12.53952253,150.96,150.91,9.16]
[1727283996853,9.16,150.96,150.91,9.16]
[1727283997155,9.16,150.96,150.94,3.3125]
[1727283997354,3.3410699,150.95,150.91,9.16]
[1727283998058,3.3410699,150.95,150.93,3.3128]
[1727283999748,12.5010699,150.95,150.93,3.3128]
[1727284002256,9.16,150.94,150.87,8.6506]
[1727284002460,9.16,150.88,150.82,2.6385]
[1727284002763,9.16,150.86,150.82,2.6385]
[1727284003158,9.16,150.86,150.85,3.3145]
[1727284003961,12.42847862,150.88,150.83,9.16]
[1727284004162,9.16,150.88,150.83,9.16]
[1727284004561,9.16,150.89,150.84,9.16]
[1727284005262,12.53157636,150.89,150.87,3.3141]
[1727284005461,9.16,150.89,150.84,9.16]
[1727284006265,12.5050494,150.9,150.85,9.16]
[1727284006461,3.3450494,150.9,150.82,16.9585]
[1727284006654,14.32,150.92,150.82,16.9585]
[1727284006859,19.6362,150.94,150.84,14.32]
[1727284007168,22.99219177,150.94,150.85,2.6493]
[1727284008259,14.32,150.92,150.85,2.6493]
[1727284009163,14.32,150.92,150.87,3.3141]